{"text_format":"1","workbook":"xlsx","n_sheets":3,"sheets":["Obrazac real_novembar (2)","Sheet3","Compatibility Report"],"not_rendered":{"charts":0,"images":0,"macros":0,"external_links":0,"defined_names":0,"comments":1,"pivot_tables":0},"unopened":[],"bounds":{"document_bytes":16777216,"sheet_cells":100000,"rows_first":2000,"rows_last":500,"rows_between":2000,"halvings":0,"cell_chars":16384,"cell_head_chars":4096},"cells_cut":0,"cells_raw":0,"read":"whole","date_system":"1900"}

{"sheet":"Obrazac real_novembar (2)","index":0,"n_rows":54,"n_cols":36,"rows_kept":54,"cut":false,"hidden":false,"merged":[[1,21,1,32],[1,33,4,33],[1,34,4,35],[1,20,4,20],[1,0,4,0],[1,1,4,1],[1,2,4,2],[1,3,4,3],[1,4,4,4],[1,5,4,5],[1,6,4,6],[1,7,4,7],[1,8,1,19]]}
[{"$f":"TODAY()","v":"2021-02-23"}]
["r.b.","Dobavljač","opis predmeta nabave ili oznaka JRJN","broj obavještenja o dodjeli sa portala JN","broj ugovora","datum potpisivanja ugovora","datum isteka ugovora","vrijednost ugovora bez pdv","Realizacija ugovora U 2020.GODINI (bez pdv)",null,null,null,null,null,null,null,null,null,null,null,"Preostala vrijednost bez pdv-NA DAN 31.12.2020.","Realizacija ugovora U 2021.GODINI (bez pdv)",null,null,null,null,null,null,null,null,null,null,null,"Preostala vrijednost bez pdv","STATUS UGOVORA"]
[null,null,null,null,null,null,null,null,"fakt:","fakt:","fakt:","fakt:","fakt:","fakt:","fakt:","fakt:","fakt:","fakt:","fakt:","fakt:",null,"fakt:","fakt:","fakt:","fakt:","fakt:","fakt:","fakt:","fakt:","fakt:","fakt:","fakt:","fakt:"]
[null,null,null,null,null,null,null,null,"2021-01-01","FEBRUAR","MART","APRIL","MAJ","JUNI","JULI","AUGUST","SEPTEBAR","OKTOBAR","NOVEMBAR","DECEMBAR",null,"JANUAR","FEBRUAR","MART","APRIL","MAJ","JUNI","JULI","AUGUST","SEPTEBAR","OKTOBAR","NOVEMBAR","DECEMBAR"]
[null,null,null,null,null,null,null,null,"iznos bez pdv","iznos bez pdv","iznos bez pdv","iznos bez pdv","iznos bez pdv","iznos bez pdv","iznos bez pdv","iznos bez pdv","iznos bez pdv","iznos bez pdv","iznos bez pdv","iznos bez pdv",null,"iznos bez pdv","iznos bez pdv","iznos bez pdv","iznos bez pdv","iznos bez pdv","iznos bez pdv","iznos bez pdv","iznos bez pdv","iznos bez pdv","iznos bez pdv","iznos bez pdv","iznos bez pdv"]
[1,"„GRAFIKON“d.o.o. Sarajevo ( OKVIRNI 16.500) 21.08.2020","Grafikon -Nabavka građevinskog materijala (UGOVOR BR. 1 na 5000,00KM)",null,null,"2020-08-21",null,5000,null,null,null,null,null,null,null,null,2074.35,729.62,955.2,1687.74,{"$f":"H6-I6-J6-K6-L6-M6-N6-O6-P6-Q6-R6-S6-T6","v":-446.90999999999985},null,null,null,null,null,null,null,null,null,null,null,null,{"$f":"U6-SUM(V6:AG6)","v":-446.90999999999985},{"$f":"IF(AH6=0,\"UGOVOR IZVRŠEN\",\"\")","v":""},{"$f":"IF(G6>#REF!,\"važi datum\",\"istekao datumski\")","v":{"$error":"#REF!"}}]
[2,"„GRAFIKON“d.o.o. Sarajevo ( OKVIRNI 16.500) 21.08.2020","Nabavka građevinskog materijala (UGOVOR BR. 2 NA 5000,00KM)",null,null,"2020-11-18",null,5000,null,null,null,null,null,null,null,null,null,null,null,null,{"$f":"H7-I7-J7-K7-L7-M7-N7-O7-P7-Q7-R7-S7-T7","v":5000},395.28,null,null,null,null,null,null,null,null,null,null,null,{"$f":"U7-SUM(V7:AG7)","v":4604.72},{"$f":"IF(AH7=0,\"UGOVOR IZVRŠEN\",\"\")","v":""},{"$f":"IF(G7>#REF!,\"važi datum\",\"istekao datumski\")","v":{"$error":"#REF!"}}]
[3,"„ DSC” Agencija za zaštitu ljudi i imovine d.o.o. Sarajevo","DSC-Nabavka usluge elektronske zaštite objekata od požara i protuprovale",null,null,"2020-03-03","2021-03-03",8990.4,null,null,null,1014.4,700.19,745.4,1603.8,504,751.5,544,504,1871,752.10999999999967,588.70000000000005,null,null,null,null,null,null,null,null,null,null,null,163.40999999999963,"",{"$f":"IF(G8>#REF!,\"važi datum\",\"istekao datumski\")","v":{"$error":"#REF!"}}]
[4,"„A-steel“ d.o.o. Sarajevo","A-steel-Nabavka   bravarskog materijala(čeličnih  cijevi i pratećeg materijala  ",null,null,"2020-03-11","2021-03-11",1998.64,null,null,null,1478.88,null,null,null,null,null,null,null,null,519.76,null,null,null,null,null,null,null,null,null,null,null,null,519.76,"",{"$f":"IF(G9>#REF!,\"važi datum\",\"istekao datumski\")","v":{"$error":"#REF!"}}]
[5,"„IDS-ZDRAVA SREDINA“d.o.o. Sarajevo","IDS-zdrava sredina-Nabavka usluge deratizacije, dezinfekcije i dezinsekcije objekata",null,null,"2020-05-15","2021-05-15",5057.12,null,null,null,null,null,381.59,806.84,369.32,334.36,314.36,369.32,334.36,2146.9699999999989,314.36,null,null,null,null,null,null,null,null,null,null,null,1832.6099999999988,"",{"$f":"IF(G10>#REF!,\"važi datum\",\"istekao datumski\")","v":{"$error":"#REF!"}}]
[6,"„FABRIANO“d.o.o. Sarajevo  ","Fabriano-Nabavka tonera  ",null,null,"2020-06-18","2021-06-18",2855,null,null,null,null,null,502,599.79999999999995,null,635.5,225.5,152,298.5,441.70000000000005,null,null,null,null,null,null,null,null,null,null,null,null,441.70000000000005,"",{"$f":"IF(G11>#REF!,\"važi datum\",\"istekao datumski\")","v":{"$error":"#REF!"}}]
[7,"„MAHER“ d.o.o. Sarajevo","Maher-Nabavka usluge periodičnog pregleda PP aparata, ispitivanje ispravnosti hidranske mreže, izrada procjene ugroženosti od požara i plana zaštite od požara ",null,null,"2020-06-16","2021-06-16",5253,null,null,null,null,null,null,null,null,null,null,1952,null,3301,134,null,null,null,null,null,null,null,null,null,null,null,3167,"",{"$error":"#REF!"}]
[8,"TI-TERMOENERGETSKI INŽINJERING d.o.o.Sarajevo","Copia-nabavka tonera",null,null,"2021-01-25","2022-01-25",3908,null,null,null,null,null,null,null,null,null,null,null,null,3908,null,null,null,null,null,null,null,null,null,null,null,null,3908,"",{"$f":"IF(G13>A2,\"važi datum\",\"istekao datumski\")","v":"istekao datumski"}]
[9,"Advokat Enver Smajkan","Enver Smajkan-Nabavka Advokatskih usluga",null,null,"2020-10-16","2021-10-16",8400,null,null,null,null,null,null,null,null,null,null,350,700,7350,700,null,null,null,null,null,null,null,null,null,null,null,6650,"",{"$f":"IF(G14>A3,\"važi datum\",\"istekao datumski\")","v":"važi datum"}]
[10,"Alternativa d.o.o","Alternativa(okvirni sporazum24165,70)-Nabavka profil.lima i repromaterijala-ugovor.1",null,null,"2020-09-15",null,5000,null,null,null,null,null,null,null,null,1032.0899999999999,null,null,1062.3699999999999,2905.54,239.13,null,null,null,null,null,null,null,null,null,null,null,2666.41,"","istekao datumski"]
[11,"„SARAJEVO OSIGURANJE“ dd Sarajevo","Sarajevo osiguranje-Osiguranje imovine i osoba",null,null,"2020-08-24","2021-08-24",10896.4,null,null,null,null,null,null,null,257,3144,4920,257,350,1968.3999999999996,null,null,null,null,null,null,null,null,null,null,null,null,1968.3999999999996,"","važi datum"]
[12,"„Samas“ d.o.o. Sarajevo","Samas-Nabavka usluga dizajna,izrade reklamnog materijala,tehničke pripreme i digitalne štampe",null,null,"2020-09-07","2021-09-07",5300,null,null,null,null,null,null,null,null,810,null,null,685,3805,null,null,null,null,null,null,null,null,null,null,null,null,3805,"","važi datum"]
[13,"Defter d.o.o.Sarajevo (okvirni sporazum  11.984,60)","Defter-Nab.higijenskog materijala ugovor 1",null,null,"2020-11-17",null,5000,null,null,null,null,null,null,null,null,null,null,1158.53,1216.6099999999999,2624.8600000000006,955.75,null,null,null,null,null,null,null,null,null,null,null,1669.1100000000006,"","istekao datumski"]
[14,"Defter d.o.o.Sarajevo ","Defter-Nab.higijenskog materijala ugovor 2",null,null,"2020-05-04",null,3000,null,null,null,null,null,null,null,null,null,null,null,null,3000,null,null,null,null,null,null,null,null,null,null,null,null,3000,"",{"$f":"IF(G19>A8,\"važi datum\",\"istekao datumski\")","v":"istekao datumski"}]
[15,"Defter d.o.o. Sarajevo","Nab.higijenskog mater.ugovor 3",null,null,"2020-09-03",null,1000,null,null,null,null,null,null,null,null,616.41,null,null,null,383.59000000000003,null,null,null,null,null,null,null,null,null,null,null,null,383.59000000000003,"","istekao datumski"]
[16,"Defter d.o.o. Sarajevo","Nab.higijenskog materijala ug.br.4",null,null,"2020-09-29",null,946,null,null,null,null,null,null,null,null,null,940.94,null,null,5.0599999999999454,null,null,null,null,null,null,null,null,null,null,null,null,5.0599999999999454,"","istekao datumski"]
[17,"Svećenički dom Vrhbosanske nadbiskupije","Garaža-Svećenički dom Vrhbosanske nadbiskupije",null,null,"2020-09-30","2021-09-30",2400,null,null,null,null,null,null,null,null,null,512.82000000000005,null,null,1887.1799999999998,512.82000000000005,null,null,null,null,null,null,null,null,null,null,null,1374.3599999999997,"","važi datum"]
[18,"TREASURE d.o.o.Zenica Ugovor 1 ","Treasure-Nabavka čeličnih cijevi i pratećih mater.  za izgradnju novih konstruk.-podkonstrukcija (okvirni sporazum 15480,00-16.09.2020)",null,null,"2020-09-16",null,5000,null,null,null,null,null,null,null,null,null,null,503.97,1790.18,2705.8499999999995,null,null,null,null,null,null,null,null,null,null,null,null,2705.8499999999995,"","istekao datumski"]
[19,"Kamer commerce d.o.o.","Kamer commerc-nabavka mašine za pranje visokim pritiskom",null,null,"2020-11-05","2021-11-05",1803.42,null,null,null,null,null,null,null,null,null,null,null,1803.42,0,null,null,null,null,null,null,null,null,null,null,null,null,0,"UGOVOR IZVRŠEN","važi datum"]
[20,"Recons društvo za reviziju,računovodstvo i fin. konsalting","Recons-nabavka usluge revizije finasijskog izvjestaja",null,null,"2020-01-15","2021-01-15",6000,null,null,null,null,null,null,null,null,null,null,null,null,6000,null,null,null,null,null,null,null,null,null,null,null,null,6000,"","važi datum"]
[21,"Square d.o.o. Sarajevo","Square-nabavka usluga štampanje blokova",null,null,"2021-01-08","2022-01-08",5500,null,null,null,null,null,null,null,null,null,null,null,null,5500,null,null,null,null,null,null,null,null,null,null,null,null,5500,"","važi datum"]
[22,"Institut za mjeriteljstvo","Institut za mjeriteljstvo-Nabavka servisiranja i kontrola vaga",null,null,"2020-02-19","2021-02-19",2496,null,null,null,null,2496,null,null,null,null,null,null,null,0,null,null,null,null,null,null,null,null,null,null,null,null,0,"UGOVOR IZVRŠEN","važi datum"]
[23,"Grafikon d.o.o. Sarajevo","Grafikon-Nabavka laminata i popratnog materijala",null,null,"2020-03-11",null,5993.19,null,null,5993.19,null,null,null,null,null,null,null,null,null,0,null,null,null,null,null,null,null,null,null,null,null,null,0,"UGOVOR IZVRŠEN","istekao datumski"]
[24,"Grafikon d.o.o. Sarajevo","Grafikon-Nabavka rigips ploca",null,null,null,null,5937.15,null,null,5937.15,null,null,null,null,null,null,null,null,null,0,null,null,null,null,null,null,null,null,null,null,null,null,0,"UGOVOR IZVRŠEN","istekao datumski"]
[25,"KA-2","KA-2-Nabavka izvodjenja radova oblaganje zidova",null,null,"2020-03-10","2021-03-10",5929.49,null,null,5929.49,null,null,null,null,null,null,null,null,null,0,null,null,null,null,null,null,null,null,null,null,null,null,0,"UGOVOR IZVRŠEN","važi datum"]
[26,"Babel d.o.o.Sarajevo","Babel-Nabavka metalnog zvona za komunalni otapad",null,null,"2020-03-24","2021-03-24",2700,null,null,null,2700,null,null,null,null,null,null,null,null,0,null,null,null,null,null,null,null,null,null,null,null,null,0,"UGOVOR IZVRŠEN","važi datum"]
[27,"Alibeg d.o.o. Sarajevo","Alibeg-Nabavka iglicaste zastite od ptica",null,null,"2020-07-22","2020-07-22",4960,null,null,null,null,null,null,null,4960,null,null,null,null,0,null,null,null,null,null,null,null,null,null,null,null,null,0,"UGOVOR IZVRŠEN","važi datum"]
[28,"Advokat Armin Hadzić","Armin Hodzić-Nabavka advokatskih usluga",null,null,"2020-12-29","2021-12-29",1300,null,null,null,null,null,null,null,null,null,null,null,null,1300,null,null,null,null,null,null,null,null,null,null,null,null,1300,"","važi datum"]
[29,null,null,null,null,null,null,null,null,null,null,null,null,null,null,null,null,null,null,null,0,null,null,null,null,null,null,null,null,null,null,null,null,0,"UGOVOR IZVRŠEN","istekao datumski"]
[30,null,null,null,null,null,null,null,null,null,null,null,null,null,null,null,null,null,null,null,0,null,null,null,null,null,null,null,null,null,null,null,null,0,"UGOVOR IZVRŠEN","istekao datumski"]
[31,null,null,null,null,null,null,null,null,null,null,null,null,null,null,null,null,null,null,null,0,null,null,null,null,null,null,null,null,null,null,null,null,0,"UGOVOR IZVRŠEN","istekao datumski"]
[32,null,null,null,null,null,null,null,null,null,null,null,null,null,null,null,null,null,null,null,0,null,null,null,null,null,null,null,null,null,null,null,null,0,"UGOVOR IZVRŠEN","istekao datumski"]
[33,null,null,null,null,null,null,null,null,null,null,null,null,null,null,null,null,null,null,null,0,null,null,null,null,null,null,null,null,null,null,null,null,0,"UGOVOR IZVRŠEN","istekao datumski"]
[34,null,null,null,null,null,null,null,null,null,null,null,null,null,null,null,null,null,null,null,0,null,null,null,null,null,null,null,null,null,null,null,null,0,"UGOVOR IZVRŠEN","istekao datumski"]
[35,null,null,null,null,null,null,null,null,null,null,null,null,null,null,null,null,null,null,null,0,null,null,null,null,null,null,null,null,null,null,null,null,0,"UGOVOR IZVRŠEN","istekao datumski"]
[36,null,null,null,null,null,null,null,null,null,null,null,null,null,null,null,null,null,null,null,0,null,null,null,null,null,null,null,null,null,null,null,null,0,"UGOVOR IZVRŠEN","istekao datumski"]
[37,null,null,null,null,null,null,null,null,null,null,null,null,null,null,null,null,null,null,null,0,null,null,null,null,null,null,null,null,null,null,null,null,0,"UGOVOR IZVRŠEN","istekao datumski"]
[38,null,null,null,null,null,null,null,null,null,null,null,null,null,null,null,null,null,null,null,0,null,null,null,null,null,null,null,null,null,null,null,null,0,"UGOVOR IZVRŠEN","istekao datumski"]
[39,null,null,null,null,null,null,null,null,null,null,null,null,null,null,null,null,null,null,null,0,null,null,null,null,null,null,null,null,null,null,null,null,0,"UGOVOR IZVRŠEN","istekao datumski"]
[40,null,null,null,null,null,null,null,null,null,null,null,null,null,null,null,null,null,null,null,0,null,null,null,null,null,null,null,null,null,null,null,null,0,"UGOVOR IZVRŠEN","istekao datumski"]
[41,null,null,null,null,null,null,null,null,null,null,null,null,null,null,null,null,null,null,null,0,null,null,null,null,null,null,null,null,null,null,null,null,0,"UGOVOR IZVRŠEN","istekao datumski"]
[42,null,null,null,null,null,null,null,null,null,null,null,null,null,null,null,null,null,null,null,0,null,null,null,null,null,null,null,null,null,null,null,null,0,"UGOVOR IZVRŠEN","istekao datumski"]
[43,null,null,null,null,null,null,null,null,null,null,null,null,null,null,null,null,null,null,null,0,null,null,null,null,null,null,null,null,null,null,null,null,0,"UGOVOR IZVRŠEN","istekao datumski"]
[44,null,null,null,null,null,null,null,null,null,null,null,null,null,null,null,null,null,null,null,0,null,null,null,null,null,null,null,null,null,null,null,null,0,"UGOVOR IZVRŠEN","istekao datumski"]
[45,null,null,null,null,null,null,null,null,null,null,null,null,null,null,null,null,null,null,null,0,null,null,null,null,null,null,null,null,null,null,null,null,0,"UGOVOR IZVRŠEN","istekao datumski"]
[46,null,null,null,null,null,null,null,null,null,null,null,null,null,null,null,null,null,null,null,0,null,null,null,null,null,null,null,null,null,null,null,null,0,"UGOVOR IZVRŠEN","istekao datumski"]
[47,null,null,null,null,null,null,null,null,null,null,null,null,null,null,null,null,null,null,null,0,null,null,null,null,null,null,null,null,null,null,null,null,0,"UGOVOR IZVRŠEN","istekao datumski"]
[48,null,null,null,null,null,null,null,null,null,null,null,null,null,null,null,null,null,null,null,0,null,null,null,null,null,null,null,null,null,null,null,null,0,"UGOVOR IZVRŠEN","istekao datumski"]
["UKUPNO:",null,null,null,null,null,null,{"$f":"SUM(H6:H53)","v":127623.81},0,0,17859.830000000002,5193.2800000000007,3196.19,1628.99,3010.4399999999996,6090.32,9398.2099999999991,8187.24,6202.02,11799.18,55058.109999999993,3840.0400000000004,0,0,0,0,0,0,0,0,0,0,0,51218.069999999992,{"$f":"IF(AH54=0,\"UGOVOR IZVRŠEN\",\"\")","v":""},"istekao datumski"]

{"sheet":"Sheet3","index":1,"n_rows":39,"n_cols":21,"rows_kept":39,"cut":false,"hidden":false,"merged":[[1,6,4,6],[1,7,4,7],[1,8,1,19],[1,20,4,20],[0,0,0,20],[1,0,4,0],[1,1,4,1],[1,2,4,2],[1,3,4,3],[1,4,4,4],[1,5,4,5]]}
["OBRAZAC PRAĆENJA REALIZACIJE (potpisanih) UGOVORA"]
["r.b.","Dobavljač","opis predmeta nabave ili oznaka JRJN","broj obavještenja o dodjeli sa portala JN","broj ugovora","datum potpisivanja ugovora","datum isteka ugovora","vrijednost ugovora bez pdv","Realizacija ugovora (bez pdv)",null,null,null,null,null,null,null,null,null,null,null,"Preostala vrijednost bez pdv"]
[null,null,null,null,null,null,null,null,"fakt:","fakt:","fakt:","fakt:","fakt:","fakt:","fakt:","fakt:","fakt:","fakt:","fakt:","fakt:"]
[null,null,null,null,null,null,null,null,"dat:","dat:","dat:","dat:","dat:","dat:","dat:","dat:","dat:","dat:","dat:","dat:"]
[null,null,null,null,null,null,null,null,"iznos bez pdv","iznos bez pdv","iznos bez pdv","iznos bez pdv","iznos bez pdv","iznos bez pdv","iznos bez pdv","iznos bez pdv","iznos bez pdv","iznos bez pdv","iznos bez pdv","iznos bez pdv"]
[1,null,null,null,null,null,null,null,null,null,null,null,null,null,null,null,null,null,null,null,{"$f":"H6-I6-J6-K6-L6-M6-N6-O6-P6-Q6-R6-S6-T6","v":0}]
[2,null,null,null,null,null,null,null,null,null,null,null,null,null,null,null,null,null,null,null,{"$f":"H7-I7-J7-K7-L7-M7-N7-O7-P7-Q7-R7-S7-T7","v":0}]
[3,null,null,null,null,null,null,null,null,null,null,null,null,null,null,null,null,null,null,null,0]
[4,null,null,null,null,null,null,null,null,null,null,null,null,null,null,null,null,null,null,null,0]
[5,null,null,null,null,null,null,null,null,null,null,null,null,null,null,null,null,null,null,null,0]
[6,null,null,null,null,null,null,null,null,null,null,null,null,null,null,null,null,null,null,null,0]
[7,null,null,null,null,null,null,null,null,null,null,null,null,null,null,null,null,null,null,null,0]
[8,null,null,null,null,null,null,null,null,null,null,null,null,null,null,null,null,null,null,null,0]
[9,null,null,null,null,null,null,null,null,null,null,null,null,null,null,null,null,null,null,null,0]
[10,null,null,null,null,null,null,null,null,null,null,null,null,null,null,null,null,null,null,null,0]
[11,null,null,null,null,null,null,null,null,null,null,null,null,null,null,null,null,null,null,null,0]
[12,null,null,null,null,null,null,null,null,null,null,null,null,null,null,null,null,null,null,null,0]
[13,null,null,null,null,null,null,null,null,null,null,null,null,null,null,null,null,null,null,null,0]
[14,null,null,null,null,null,null,null,null,null,null,null,null,null,null,null,null,null,null,null,0]
[15,null,null,null,null,null,null,null,null,null,null,null,null,null,null,null,null,null,null,null,0]
[16,null,null,null,null,null,null,null,null,null,null,null,null,null,null,null,null,null,null,null,0]
[17,null,null,null,null,null,null,null,null,null,null,null,null,null,null,null,null,null,null,null,0]
[18,null,null,null,null,null,null,null,null,null,null,null,null,null,null,null,null,null,null,null,0]
[19,null,null,null,null,null,null,null,null,null,null,null,null,null,null,null,null,null,null,null,0]
[20,null,null,null,null,null,null,null,null,null,null,null,null,null,null,null,null,null,null,null,0]
[21,null,null,null,null,null,null,null,null,null,null,null,null,null,null,null,null,null,null,null,0]
[22,null,null,null,null,null,null,null,null,null,null,null,null,null,null,null,null,null,null,null,0]
[23,null,null,null,null,null,null,null,null,null,null,null,null,null,null,null,null,null,null,null,0]
[24,null,null,null,null,null,null,null,null,null,null,null,null,null,null,null,null,null,null,null,0]
[25,null,null,null,null,null,null,null,null,null,null,null,null,null,null,null,null,null,null,null,0]
[26,null,null,null,null,null,null,null,null,null,null,null,null,null,null,null,null,null,null,null,0]
[27,null,null,null,null,null,null,null,null,null,null,null,null,null,null,null,null,null,null,null,0]
[28,null,null,null,null,null,null,null,null,null,null,null,null,null,null,null,null,null,null,null,0]
[29,null,null,null,null,null,null,null,null,null,null,null,null,null,null,null,null,null,null,null,0]
[30,null,null,null,null,null,null,null,null,null,null,null,null,null,null,null,null,null,null,null,0]
[31,null,null,null,null,null,null,null,null,null,null,null,null,null,null,null,null,null,null,null,0]
[32,null,null,null,null,null,null,null,null,null,null,null,null,null,null,null,null,null,null,null,0]
[33,null,null,null,null,null,null,null,null,null,null,null,null,null,null,null,null,null,null,null,0]
[34,null,null,null,null,null,null,null,null,null,null,null,null,null,null,null,null,null,null,null,0]

{"sheet":"Compatibility Report","index":2,"n_rows":8,"n_cols":6,"rows_kept":8,"cut":false,"hidden":false,"merged":[]}
[null,"Compatibility Report for pracenje javnih nabavki MIDO 2.xls"]
[null,"Run on 20.1.2016 12:36"]
[]
[null,"The following features in this workbook are not supported by earlier versions of Excel. These features may be lost or degraded when opening this workbook in an earlier version of Excel or if you save this workbook in an earlier file format."]
[]
[null,"Minor loss of fidelity",null,null,"# of occurrences","Version"]
[]
[null,"Some cells or styles in this workbook contain formatting that is not supported by the selected file format. These formats will be converted to the closest format available.",null,null,38,"Excel 97-2003"]